[Event "Titled Tuesday Blitz November 15 Early 2022"]
[White "Kryakvin, Dmitry"]
[Black "Ronka, Erik"]
[WhiteFideId "4153278"]
[BlackFideId "505080"]
[WhiteElo "2414"]
[BlackElo "2264"]
[Result "1/2-1/2"]
[Round "10"]
[TimeControl "180+1"]
[Date "2022.11.16"]
[WhiteClock "0:00:05"]
[BlackClock "0:00:06"]

1. d4 {[%clk 0:03:00]}  d5 {[%clk 0:03:00]} 2. c4 {[%clk 0:02:59]}  e6 {[%clk 0:02:58]} 3. Nf3 {[%clk 0:02:59]}  Nf6 {[%clk 0:02:58]} 4. Nc3 {[%clk 0:02:58]}  c6 {[%clk 0:02:58]} 5. e3 {[%clk 0:02:54]}  Nbd7 {[%clk 0:02:57]} 6. Be2 {[%clk 0:02:54]}  dxc4 {[%clk 0:02:57]} 7. a4 {[%clk 0:02:54]}  Bd6 {[%clk 0:02:53]} 8. Nd2 {[%clk 0:02:54]}  O-O {[%clk 0:02:50]} 9. Nxc4 {[%clk 0:02:53]}  Bc7 {[%clk 0:02:51]} 10. b3 {[%clk 0:02:54]}  Nb6 {[%clk 0:02:34]} 11. Ba3 {[%clk 0:02:46]}  Re8 {[%clk 0:02:28]} 12. Ne5 {[%clk 0:02:44]}  Nfd7 {[%clk 0:02:07]} 13. f4 {[%clk 0:02:36]}  Nd5 {[%clk 0:02:07]} 14. Nxd5 {[%clk 0:02:30]}  exd5 {[%clk 0:02:01]} 15. Bd3 {[%clk 0:02:29]}  Nf8 {[%clk 0:01:26]} 16. Qh5 {[%clk 0:02:05]}  g6 {[%clk 0:01:19]} 17. Qh6 {[%clk 0:02:05]}  Bd6 {[%clk 0:01:13]} 18. Bxd6 {[%clk 0:01:54]}  Qxd6 {[%clk 0:01:13]} 19. Kf2 {[%clk 0:01:54]}  f6 {[%clk 0:00:58]} 20. Nf3 {[%clk 0:01:52]}  Bg4 {[%clk 0:00:54]} 21. Rhe1 {[%clk 0:01:43]}  Bxf3 {[%clk 0:00:53]} 22. gxf3 {[%clk 0:01:38]}  Re7 {[%clk 0:00:48]} 23. Re2 {[%clk 0:01:21]}  f5 {[%clk 0:00:42]} 24. h4 {[%clk 0:01:17]}  Qf6 {[%clk 0:00:35]} 25. Rh1 {[%clk 0:01:15]}  Rae8 {[%clk 0:00:27]} 26. h5 {[%clk 0:01:09]}  Qg7 {[%clk 0:00:19]} 27. Qg5 {[%clk 0:01:07]}  Ne6 {[%clk 0:00:19]} 28. Qg3 {[%clk 0:00:53]}  Nxd4 {[%clk 0:00:19]} 29. Ree1 {[%clk 0:00:49]}  Nxb3 {[%clk 0:00:14]} 30. hxg6 {[%clk 0:00:48]}  hxg6 {[%clk 0:00:15]} 31. Reg1 {[%clk 0:00:36]}  Nc5 {[%clk 0:00:15]} 32. Bxf5 {[%clk 0:00:28]}  Rxe3 {[%clk 0:00:11]} 33. Qxg6 {[%clk 0:00:24]}  Re2+ {[%clk 0:00:10]} 34. Kg3 {[%clk 0:00:22]}  Qxg6+ {[%clk 0:00:10]} 35. Bxg6 {[%clk 0:00:23]}  Rf8 {[%clk 0:00:08]} 36. f5 {[%clk 0:00:18]}  Kg7 {[%clk 0:00:07]} 37. Rh7+ {[%clk 0:00:16]}  Kf6 {[%clk 0:00:08]} 38. Rgh1 {[%clk 0:00:13]}  d4 {[%clk 0:00:03]} 39. R1h6 {[%clk 0:00:13]}  Kg5 {[%clk 0:00:01]} 40. f4+ {[%clk 0:00:11]}  Kf6 {[%clk 0:00:01]} 41. Bh5+ {[%clk 0:00:11]}  Kxf5 {[%clk 0:00:02]} 42. Bxe2 {[%clk 0:00:11]}  d3 {[%clk 0:00:01]} 43. Bg4+ {[%clk 0:00:11]}  Ke4 {[%clk 0:00:02]} 44. Re7+ {[%clk 0:00:10]}  Kd4 {[%clk 0:00:03]} 45. Rd6+ {[%clk 0:00:10]}  Kc3 {[%clk 0:00:03]} 46. Re5 {[%clk 0:00:09]}  Nb3 {[%clk 0:00:03]} 47. Re3 {[%clk 0:00:08]}  Nc1 {[%clk 0:00:03]} 48. Rd7 {[%clk 0:00:07]}  c5 {[%clk 0:00:03]} 49. Rxb7 {[%clk 0:00:06]}  c4 {[%clk 0:00:03]} 50. Rxa7 {[%clk 0:00:05]}  Nb3 {[%clk 0:00:03]} 51. Rc7 {[%clk 0:00:05]}  Kd2 {[%clk 0:00:03]} 52. Re4 {[%clk 0:00:04]}  c3 {[%clk 0:00:04]} 53. Rb4 {[%clk 0:00:03]}  Nc1 {[%clk 0:00:02]} 54. f5 {[%clk 0:00:03]}  c2 {[%clk 0:00:02]} 55. Rd4 {[%clk 0:00:02]}  Nb3 {[%clk 0:00:02]} 56. Rdd7 {[%clk 0:00:02]}  c1=Q {[%clk 0:00:02]} 57. Rxc1 {[%clk 0:00:03]}  Nxc1 {[%clk 0:00:03]} 58. a5 {[%clk 0:00:03]}  Ne2+ {[%clk 0:00:03]} 59. Bxe2 {[%clk 0:00:02]}  Kxe2 {[%clk 0:00:03]} 60. Kf4 {[%clk 0:00:03]}  d2 {[%clk 0:00:04]} 61. Re7+ {[%clk 0:00:04]}  Kf1 {[%clk 0:00:04]} 62. Rd7 {[%clk 0:00:04]}  Ke1 {[%clk 0:00:04]} 63. Re7+ {[%clk 0:00:04]}  Kf1 {[%clk 0:00:05]} 64. Rd7 {[%clk 0:00:05]}  Ke1 {[%clk 0:00:05]} 65. Re7+ {[%clk 0:00:05]}  Kf1 {[%clk 0:00:06]} 1/2-1/2


[Site "https://www.chess.com"]

[Event "Titled Tuesday Blitz November 15 Early 2022"]
[White "Kula, Robert"]
[Black "Vlassov, Nikolai"]
[WhiteFideId "1101218"]
[BlackFideId "4103360"]
[WhiteElo "2184"]
[BlackElo "2324"]
[Result "1-0"]
[Round "10"]
[TimeControl "180+1"]
[Date "2022.11.16"]
[WhiteClock "0:00:44"]
[BlackClock "0:00:13"]

1. e4 {[%clk 0:02:59]}  Nc6 {[%clk 0:02:58]} 2. d4 {[%clk 0:02:58]}  d5 {[%clk 0:02:58]} 3. exd5 {[%clk 0:02:56]}  Qxd5 {[%clk 0:02:58]} 4. c3 {[%clk 0:02:53]}  Nf6 {[%clk 0:02:57]} 5. Nf3 {[%clk 0:02:51]}  Bg4 {[%clk 0:02:56]} 6. Be2 {[%clk 0:02:51]}  O-O-O {[%clk 0:02:56]} 7. O-O {[%clk 0:02:51]}  e5 {[%clk 0:02:56]} 8. c4 {[%clk 0:02:47]}  Qd6 {[%clk 0:02:55]} 9. d5 {[%clk 0:02:47]}  Bxf3 {[%clk 0:02:54]} 10. Bxf3 {[%clk 0:02:45]}  Nd4 {[%clk 0:02:55]} 11. Nc3 {[%clk 0:02:45]}  Kb8 {[%clk 0:02:53]} 12. Be3 {[%clk 0:02:45]}  c5 {[%clk 0:02:31]} 13. dxc6 {[%clk 0:02:41]}  Nxf3+ {[%clk 0:02:30]} 14. Qxf3 {[%clk 0:02:37]}  Qxc6 {[%clk 0:02:30]} 15. Qg3 {[%clk 0:02:26]}  Bd6 {[%clk 0:02:23]} 16. Nb5 {[%clk 0:02:25]}  a6 {[%clk 0:02:16]} 17. Nxd6 {[%clk 0:02:18]}  Qxd6 {[%clk 0:02:15]} 18. Qxg7 {[%clk 0:01:54]}  Qe6 {[%clk 0:02:10]} 19. Qg3 {[%clk 0:01:42]}  Rhg8 {[%clk 0:02:06]} 20. Qf3 {[%clk 0:01:41]}  Ng4 {[%clk 0:01:59]} 21. b3 {[%clk 0:01:38]}  f5 {[%clk 0:01:59]} 22. h3 {[%clk 0:01:37]}  Nf6 {[%clk 0:01:59]} 23. Rad1 {[%clk 0:01:32]}  Rde8 {[%clk 0:01:09]} 24. Rfe1 {[%clk 0:01:24]}  Ne4 {[%clk 0:01:04]} 25. Bc1 {[%clk 0:01:19]}  Rg6 {[%clk 0:01:02]} 26. Rxe4 {[%clk 0:01:13]}  fxe4 {[%clk 0:01:02]} 27. Qxe4 {[%clk 0:01:13]}  Reg8 {[%clk 0:00:57]} 28. g3 {[%clk 0:01:12]}  Qxh3 {[%clk 0:00:55]} 29. Qxe5+ {[%clk 0:01:11]}  Ka8 {[%clk 0:00:55]} 30. Bf4 {[%clk 0:01:09]}  h5 {[%clk 0:00:51]} 31. Qe7 {[%clk 0:01:05]}  Qc8 {[%clk 0:00:38]} 32. Kf1 {[%clk 0:00:56]}  Qh3+ {[%clk 0:00:28]} 33. Kg1 {[%clk 0:00:53]}  Qc8 {[%clk 0:00:28]} 34. Qd7 {[%clk 0:00:50]}  Qc5 {[%clk 0:00:23]} 35. Qd4 {[%clk 0:00:47]}  Qa3 {[%clk 0:00:19]} 36. Be3 {[%clk 0:00:46]}  b6 {[%clk 0:00:13]} 37. Qe4+ {[%clk 0:00:44]}  Kb8 {[%clk 0:00:13]} 38. Bf4+ {[%clk 0:00:44]} 1-0


[Site "https://www.chess.com"]

[Event "Titled Tuesday Blitz November 15 Early 2022"]
[White "Langner, Ladislav"]
[Black "Saravana, Krishnan P."]
[WhiteFideId "300403"]
[BlackFideId "5018382"]
[WhiteElo "2346"]
[BlackElo "2155"]
[Result "0-1"]
[Round "10"]
[TimeControl "180+1"]
[Date "2022.11.16"]
[WhiteClock "0:00:01"]
[BlackClock "0:00:35"]

1. e4 {[%clk 0:02:50]}  Nf6 {[%clk 0:02:57]} 2. e5 {[%clk 0:02:50]}  Nd5 {[%clk 0:02:56]} 3. d4 {[%clk 0:02:51]}  d6 {[%clk 0:02:57]} 4. exd6 {[%clk 0:02:51]}  cxd6 {[%clk 0:02:56]} 5. c4 {[%clk 0:02:52]}  Nb6 {[%clk 0:02:56]} 6. Nc3 {[%clk 0:02:52]}  g6 {[%clk 0:02:56]} 7. g3 {[%clk 0:02:50]}  Bg7 {[%clk 0:02:56]} 8. Nge2 {[%clk 0:02:47]}  O-O {[%clk 0:02:55]} 9. b3 {[%clk 0:02:46]}  Nc6 {[%clk 0:02:52]} 10. Be3 {[%clk 0:02:45]}  Bg4 {[%clk 0:02:51]} 11. Bg2 {[%clk 0:02:36]}  e5 {[%clk 0:02:51]} 12. d5 {[%clk 0:02:25]}  Nd4 {[%clk 0:02:51]} 13. O-O {[%clk 0:02:23]}  Nxe2+ {[%clk 0:02:30]} 14. Nxe2 {[%clk 0:02:22]}  Qd7 {[%clk 0:02:24]} 15. Qd2 {[%clk 0:02:19]}  f5 {[%clk 0:02:21]} 16. f3 {[%clk 0:02:05]}  Bh5 {[%clk 0:02:20]} 17. Bh6 {[%clk 0:02:02]}  Rae8 {[%clk 0:02:17]} 18. Bxg7 {[%clk 0:02:01]}  Qxg7 {[%clk 0:02:16]} 19. Rae1 {[%clk 0:01:59]}  Nd7 {[%clk 0:02:14]} 20. f4 {[%clk 0:01:35]}  Bxe2 {[%clk 0:02:10]} 21. Rxe2 {[%clk 0:01:35]}  b6 {[%clk 0:02:09]} 22. fxe5 {[%clk 0:01:28]}  Nxe5 {[%clk 0:02:08]} 23. Qg5 {[%clk 0:01:22]}  h6 {[%clk 0:02:03]} 24. Qd2 {[%clk 0:01:20]}  g5 {[%clk 0:01:58]} 25. Ref2 {[%clk 0:01:19]}  Qg6 {[%clk 0:01:23]} 26. Bh3 {[%clk 0:01:12]}  g4 {[%clk 0:01:23]} 27. Bg2 {[%clk 0:01:12]}  Rf6 {[%clk 0:01:19]} 28. Qd4 {[%clk 0:00:45]}  Qg7 {[%clk 0:01:18]} 29. Qd2 {[%clk 0:00:32]}  Ref8 {[%clk 0:01:16]} 30. Qd4 {[%clk 0:00:26]}  h5 {[%clk 0:01:13]} 31. Re2 {[%clk 0:00:23]}  h4 {[%clk 0:01:11]} 32. Rxe5 {[%clk 0:00:23]}  dxe5 {[%clk 0:01:10]} 33. Qxe5 {[%clk 0:00:21]}  h3 {[%clk 0:01:09]} 34. Rd1 {[%clk 0:00:17]}  hxg2 {[%clk 0:01:08]} 35. d6 {[%clk 0:00:18]}  Qd7 {[%clk 0:01:05]} 36. Qf4 {[%clk 0:00:16]}  Rg6 {[%clk 0:01:02]} 37. Rd5 {[%clk 0:00:14]}  Rff6 {[%clk 0:01:02]} 38. c5 {[%clk 0:00:14]}  bxc5 {[%clk 0:01:02]} 39. Qc4 {[%clk 0:00:11]}  Kg7 {[%clk 0:01:00]} 40. Rxc5 {[%clk 0:00:11]}  Qxd6 {[%clk 0:00:58]} 41. Rc7+ {[%clk 0:00:11]}  Kh6 {[%clk 0:00:57]} 42. Qc1+ {[%clk 0:00:08]}  f4 {[%clk 0:00:57]} 43. gxf4 {[%clk 0:00:08]}  Qxf4 {[%clk 0:00:56]} 44. Qxf4+ {[%clk 0:00:02]}  Rxf4 {[%clk 0:00:56]} 45. Rxa7 {[%clk 0:00:03]}  Rd6 {[%clk 0:00:53]} 46. Kxg2 {[%clk 0:00:03]}  Re4 {[%clk 0:00:53]} 47. Kg3 {[%clk 0:00:03]}  Rd3+ {[%clk 0:00:52]} 48. Kf2 {[%clk 0:00:01]}  Rd2+ {[%clk 0:00:52]} 49. Kg3 {[%clk 0:00:01]}  Red4 {[%clk 0:00:41]} 50. Ra5 {[%clk 0:00:01]}  R2d3+ {[%clk 0:00:35]} 51. Kf2 {[%clk 0:00:01]}  Rf3+ {[%clk 0:00:35]} 0-1


[Site "https://www.chess.com"]

[Event "Titled Tuesday Blitz November 15 Early 2022"]
[White "Leve, Nitai"]
[Black "Thorhallsson, Simon"]
[WhiteFideId "2006898"]
[BlackFideId "2310090"]
[WhiteElo "2144"]
[BlackElo "2109"]
[Result "0-1"]
[Round "10"]
[TimeControl "180+1"]
[Date "2022.11.16"]
[WhiteClock "0:00:05"]
[BlackClock "0:00:05"]

1. e4 {[%clk 0:03:00]}  c5 {[%clk 0:02:59]} 2. Nf3 {[%clk 0:02:59]}  d6 {[%clk 0:02:58]} 3. d4 {[%clk 0:02:55]}  cxd4 {[%clk 0:02:58]} 4. Qxd4 {[%clk 0:02:56]}  Nc6 {[%clk 0:02:55]} 5. Bb5 {[%clk 0:02:51]}  Bd7 {[%clk 0:02:54]} 6. Bxc6 {[%clk 0:02:44]}  Bxc6 {[%clk 0:02:55]} 7. Nc3 {[%clk 0:02:44]}  Nf6 {[%clk 0:02:49]} 8. Bg5 {[%clk 0:02:39]}  e6 {[%clk 0:02:48]} 9. O-O-O {[%clk 0:02:34]}  Be7 {[%clk 0:02:46]} 10. Qd3 {[%clk 0:02:21]}  O-O {[%clk 0:02:31]} 11. Nd4 {[%clk 0:02:05]}  Qa5 {[%clk 0:02:14]} 12. f4 {[%clk 0:01:58]}  Rac8 {[%clk 0:02:01]} 13. f5 {[%clk 0:01:58]}  Bd7 {[%clk 0:01:43]} 14. Bxf6 {[%clk 0:01:27]}  Bxf6 {[%clk 0:01:40]} 15. Nb3 {[%clk 0:01:27]}  Qb6 {[%clk 0:01:12]} 16. Qxd6 {[%clk 0:01:25]}  Qe3+ {[%clk 0:01:01]} 17. Kb1 {[%clk 0:01:21]}  Bxc3 {[%clk 0:00:52]} 18. Qxd7 {[%clk 0:01:07]}  Bf6 {[%clk 0:00:28]} 19. fxe6 {[%clk 0:01:06]}  Qxe4 {[%clk 0:00:28]} 20. exf7+ {[%clk 0:01:01]}  Kh8 {[%clk 0:00:27]} 21. Rd3 {[%clk 0:00:53]}  Qxg2 {[%clk 0:00:20]} 22. Rc1 {[%clk 0:00:38]}  Rcd8 {[%clk 0:00:19]} 23. Qf5 {[%clk 0:00:10]}  Rxd3 {[%clk 0:00:16]} 24. Qxd3 {[%clk 0:00:10]}  Qxh2 {[%clk 0:00:12]} 25. Re1 {[%clk 0:00:09]}  Qb8 {[%clk 0:00:09]} 26. Nc5 {[%clk 0:00:08]}  Rxf7 {[%clk 0:00:08]} 27. Qd5 {[%clk 0:00:07]}  Qg8 {[%clk 0:00:06]} 28. Nxb7 {[%clk 0:00:03]}  Rc7 {[%clk 0:00:03]} 29. Qxg8+ {[%clk 0:00:02]}  Kxg8 {[%clk 0:00:04]} 30. Nd6 {[%clk 0:00:03]}  Rd7 {[%clk 0:00:04]} 31. Nf5 {[%clk 0:00:02]}  h5 {[%clk 0:00:03]} 32. c4 {[%clk 0:00:01]}  g6 {[%clk 0:00:03]} 33. Ne3 {[%clk 0:00:01]}  Rd2 {[%clk 0:00:03]} 34. b4 {[%clk 0:00:01]}  Rb2+ {[%clk 0:00:03]} 35. Kc1 {[%clk 0:00:02]}  Rxb4 {[%clk 0:00:04]} 36. Nd5 {[%clk 0:00:02]}  Rxc4+ {[%clk 0:00:04]} 37. Kb1 {[%clk 0:00:03]}  Bg7 {[%clk 0:00:04]} 38. Ne7+ {[%clk 0:00:03]}  Kh7 {[%clk 0:00:05]} 39. Rg1 {[%clk 0:00:03]}  Rb4+ {[%clk 0:00:05]} 40. Kc2 {[%clk 0:00:04]}  Ra4 {[%clk 0:00:06]} 41. Nxg6 {[%clk 0:00:03]}  Rxa2+ {[%clk 0:00:06]} 42. Kd3 {[%clk 0:00:04]}  Ra3+ {[%clk 0:00:06]} 43. Ke4 {[%clk 0:00:04]}  Ra4+ {[%clk 0:00:07]} 44. Kd5 {[%clk 0:00:05]}  Rg4 {[%clk 0:00:07]} 45. Rxg4 {[%clk 0:00:04]}  hxg4 {[%clk 0:00:07]} 46. Nf4 {[%clk 0:00:05]}  Kh6 {[%clk 0:00:07]} 47. Ke4 {[%clk 0:00:05]}  Kg5 {[%clk 0:00:07]} 48. Ne6+ {[%clk 0:00:05]}  Kf6 {[%clk 0:00:08]} 49. Nd4 {[%clk 0:00:05]}  Bh6 {[%clk 0:00:08]} 50. Nb5 {[%clk 0:00:04]}  a5 {[%clk 0:00:08]} 51. Nd6 {[%clk 0:00:05]}  a4 {[%clk 0:00:08]} 52. Nc4 {[%clk 0:00:05]}  Kg5 {[%clk 0:00:07]} 53. Ke3 {[%clk 0:00:05]}  Kh4+ {[%clk 0:00:08]} 54. Kf2 {[%clk 0:00:06]}  Kh3 {[%clk 0:00:08]} 55. Kg1 {[%clk 0:00:06]}  Kg3 {[%clk 0:00:07]} 56. Ne5 {[%clk 0:00:05]}  a3 {[%clk 0:00:05]} 0-1


[Site "https://www.chess.com"]

[Event "Titled Tuesday Blitz November 15 Early 2022"]
[White "Makridis, Dimitrios"]
[Black "Manukyan, Sargis A."]
[WhiteFideId "25864475"]
[BlackFideId "13303970"]
[WhiteElo "2272"]
[BlackElo "2187"]
[Result "1/2-1/2"]
[Round "10"]
[TimeControl "180+1"]
[Date "2022.11.16"]
[WhiteClock "0:01:25"]
[BlackClock "0:00:15"]

1. d4 {[%clk 0:02:56]}  Nf6 {[%clk 0:02:59]} 2. Nf3 {[%clk 0:02:56]}  g6 {[%clk 0:02:55]} 3. Nc3 {[%clk 0:02:57]}  c5 {[%clk 0:02:56]} 4. d5 {[%clk 0:02:56]}  Bg7 {[%clk 0:02:55]} 5. e4 {[%clk 0:02:57]}  d6 {[%clk 0:02:55]} 6. Bc4 {[%clk 0:02:56]}  Bg4 {[%clk 0:02:53]} 7. Be2 {[%clk 0:02:56]}  Nbd7 {[%clk 0:02:49]} 8. h3 {[%clk 0:02:54]}  Bxf3 {[%clk 0:02:48]} 9. Bxf3 {[%clk 0:02:55]}  O-O {[%clk 0:02:49]} 10. O-O {[%clk 0:02:55]}  Rb8 {[%clk 0:02:48]} 11. a4 {[%clk 0:02:54]}  a6 {[%clk 0:02:40]} 12. a5 {[%clk 0:02:54]}  Ne8 {[%clk 0:02:38]} 13. Be2 {[%clk 0:02:53]}  Nc7 {[%clk 0:02:32]} 14. f4 {[%clk 0:02:51]}  b5 {[%clk 0:02:20]} 15. axb6 {[%clk 0:02:49]}  Rxb6 {[%clk 0:02:20]} 16. Ra2 {[%clk 0:02:40]}  Nb5 {[%clk 0:02:18]} 17. Nxb5 {[%clk 0:02:40]}  axb5 {[%clk 0:02:19]} 18. Be3 {[%clk 0:02:38]}  b4 {[%clk 0:02:15]} 19. b3 {[%clk 0:02:33]}  Qc7 {[%clk 0:02:10]} 20. Bc4 {[%clk 0:02:31]}  Rbb8 {[%clk 0:02:06]} 21. Qd3 {[%clk 0:02:26]}  Ra8 {[%clk 0:02:05]} 22. Rxa8 {[%clk 0:02:26]}  Rxa8 {[%clk 0:02:05]} 23. e5 {[%clk 0:02:23]}  dxe5 {[%clk 0:01:58]} 24. d6 {[%clk 0:02:19]}  Qxd6 {[%clk 0:01:31]} 25. Bxf7+ {[%clk 0:02:16]}  Kh8 {[%clk 0:01:30]} 26. Qe4 {[%clk 0:02:11]}  Rf8 {[%clk 0:01:22]} 27. Bc4 {[%clk 0:02:08]}  exf4 {[%clk 0:01:19]} 28. Rxf4 {[%clk 0:02:04]}  Rxf4 {[%clk 0:01:17]} 29. Bxf4 {[%clk 0:02:05]}  Qd4+ {[%clk 0:01:16]} 30. Qxd4 {[%clk 0:02:05]}  Bxd4+ {[%clk 0:01:16]} 31. Kf1 {[%clk 0:02:05]}  Kg7 {[%clk 0:01:10]} 32. Ke2 {[%clk 0:02:03]}  Kf6 {[%clk 0:01:03]} 33. Kf3 {[%clk 0:02:00]}  h5 {[%clk 0:00:51]} 34. g4 {[%clk 0:01:59]}  hxg4+ {[%clk 0:00:49]} 35. hxg4 {[%clk 0:02:00]}  g5 {[%clk 0:00:30]} 36. Bg3 {[%clk 0:01:44]}  e6 {[%clk 0:00:24]} 37. Ke4 {[%clk 0:01:42]}  Ke7 {[%clk 0:00:22]} 38. Bb5 {[%clk 0:01:34]}  Nf6+ {[%clk 0:00:22]} 39. Kf3 {[%clk 0:01:33]}  e5 {[%clk 0:00:20]} 40. Bc6 {[%clk 0:01:33]}  Ke6 {[%clk 0:00:20]} 41. Be4 {[%clk 0:01:32]}  Ne8 {[%clk 0:00:18]} 42. Bf5+ {[%clk 0:01:29]}  Kf6 {[%clk 0:00:18]} 43. Be4 {[%clk 0:01:29]}  Nd6 {[%clk 0:00:18]} 44. Be1 {[%clk 0:01:29]}  Nb5 {[%clk 0:00:17]} 45. Bd3 {[%clk 0:01:28]}  Na3 {[%clk 0:00:17]} 46. Ke4 {[%clk 0:01:27]}  Nb1 {[%clk 0:00:17]} 47. Kd5 {[%clk 0:01:25]}  Nc3+ {[%clk 0:00:14]} 48. Bxc3 {[%clk 0:01:25]}  bxc3 {[%clk 0:00:15]} 1/2-1/2


[Site "https://www.chess.com"]

[Event "Titled Tuesday Blitz November 15 Early 2022"]
[White "Marchesich, Giovanni"]
[Black "Liu, Xiangyi"]
[WhiteFideId "2824790"]
[BlackFideId "8605718"]
[WhiteElo "2200"]
[BlackElo "2323"]
[Result "1/2-1/2"]
[Round "10"]
[TimeControl "180+1"]
[Date "2022.11.16"]
[WhiteClock "0:00:10"]
[BlackClock "0:00:26"]

1. e4 {[%clk 0:03:00]}  g6 {[%clk 0:03:00]} 2. d4 {[%clk 0:02:56]}  Bg7 {[%clk 0:03:00]} 3. Nc3 {[%clk 0:02:56]}  c6 {[%clk 0:03:00]} 4. g3 {[%clk 0:02:55]}  b5 {[%clk 0:03:00]} 5. Bg2 {[%clk 0:02:54]}  b4 {[%clk 0:03:01]} 6. Nce2 {[%clk 0:02:53]}  d6 {[%clk 0:03:00]} 7. Nf3 {[%clk 0:02:51]}  Nf6 {[%clk 0:03:00]} 8. e5 {[%clk 0:02:48]}  Nd5 {[%clk 0:02:57]} 9. O-O {[%clk 0:02:48]}  O-O {[%clk 0:02:57]} 10. Re1 {[%clk 0:02:38]}  Nd7 {[%clk 0:02:52]} 11. Nf4 {[%clk 0:02:37]}  N7b6 {[%clk 0:02:46]} 12. h4 {[%clk 0:02:25]}  Bg4 {[%clk 0:02:43]} 13. Qd3 {[%clk 0:02:19]}  Bf5 {[%clk 0:02:37]} 14. Qe2 {[%clk 0:02:15]}  Nxf4 {[%clk 0:02:35]} 15. Bxf4 {[%clk 0:02:14]}  Nd5 {[%clk 0:02:36]} 16. Bg5 {[%clk 0:01:49]}  Qb6 {[%clk 0:02:14]} 17. Qd2 {[%clk 0:01:42]}  dxe5 {[%clk 0:02:09]} 18. dxe5 {[%clk 0:01:38]}  Rfd8 {[%clk 0:02:05]} 19. Qe2 {[%clk 0:01:26]}  h6 {[%clk 0:02:04]} 20. Bd2 {[%clk 0:01:21]}  Bxc2 {[%clk 0:02:02]} 21. Bxh6 {[%clk 0:01:19]}  Bxh6 {[%clk 0:01:52]} 22. Qxc2 {[%clk 0:01:19]}  e6 {[%clk 0:01:52]} 23. Ng5 {[%clk 0:01:16]}  Bxg5 {[%clk 0:01:49]} 24. hxg5 {[%clk 0:01:16]}  Rac8 {[%clk 0:01:48]} 25. Re4 {[%clk 0:01:09]}  Kf8 {[%clk 0:01:47]} 26. Qe2 {[%clk 0:01:01]}  c5 {[%clk 0:01:35]} 27. Rh4 {[%clk 0:00:59]}  Ke7 {[%clk 0:01:33]} 28. Rd1 {[%clk 0:00:53]}  Rd7 {[%clk 0:01:13]} 29. Rh7 {[%clk 0:00:49]}  Rf8 {[%clk 0:01:10]} 30. Be4 {[%clk 0:00:48]}  Kd8 {[%clk 0:01:06]} 31. Qf3 {[%clk 0:00:48]}  Qc6 {[%clk 0:01:02]} 32. Bxg6 {[%clk 0:00:31]}  Kc7 {[%clk 0:01:01]} 33. Be4 {[%clk 0:00:31]}  Kb6 {[%clk 0:01:00]} 34. g6 {[%clk 0:00:30]}  fxg6 {[%clk 0:00:48]} 35. Qxf8 {[%clk 0:00:29]}  Rxh7 {[%clk 0:00:48]} 36. Qb8+ {[%clk 0:00:23]}  Rb7 {[%clk 0:00:48]} 37. Qd8+ {[%clk 0:00:22]}  Qc7 {[%clk 0:00:41]} 38. Qxc7+ {[%clk 0:00:20]}  Rxc7 {[%clk 0:00:42]} 39. Bxd5 {[%clk 0:00:20]}  exd5 {[%clk 0:00:42]} 40. Rxd5 {[%clk 0:00:20]}  c4 {[%clk 0:00:43]} 41. Rd2 {[%clk 0:00:17]}  g5 {[%clk 0:00:40]} 42. Kf1 {[%clk 0:00:13]}  Kc5 {[%clk 0:00:39]} 43. Ke2 {[%clk 0:00:13]}  c3 {[%clk 0:00:39]} 44. bxc3 {[%clk 0:00:14]}  bxc3 {[%clk 0:00:40]} 45. Rc2 {[%clk 0:00:13]}  Kd4 {[%clk 0:00:41]} 46. f4 {[%clk 0:00:13]}  gxf4 {[%clk 0:00:41]} 47. gxf4 {[%clk 0:00:14]}  Rh7 {[%clk 0:00:42]} 48. Kf3 {[%clk 0:00:14]}  Kd3 {[%clk 0:00:41]} 49. Rc1 {[%clk 0:00:11]}  Kd2 {[%clk 0:00:41]} 50. Rg1 {[%clk 0:00:09]}  Rh3+ {[%clk 0:00:35]} 51. Ke4 {[%clk 0:00:09]}  Re3+ {[%clk 0:00:35]} 52. Kd5 {[%clk 0:00:08]}  c2 {[%clk 0:00:36]} 53. e6 {[%clk 0:00:05]}  Re1 {[%clk 0:00:32]} 54. Rg2+ {[%clk 0:00:05]}  Re2 {[%clk 0:00:31]} 55. Rg1 {[%clk 0:00:06]}  Kc3 {[%clk 0:00:26]} 56. Rc1 {[%clk 0:00:04]}  Rd2+ {[%clk 0:00:23]} 57. Ke5 {[%clk 0:00:03]}  Kb2 {[%clk 0:00:22]} 58. Rxc2+ {[%clk 0:00:02]}  Rxc2 {[%clk 0:00:23]} 59. f5 {[%clk 0:00:03]}  Re2+ {[%clk 0:00:23]} 60. Kd6 {[%clk 0:00:03]}  Kxa2 {[%clk 0:00:24]} 61. f6 {[%clk 0:00:04]}  a5 {[%clk 0:00:25]} 62. f7 {[%clk 0:00:04]}  Rf2 {[%clk 0:00:22]} 63. Ke7 {[%clk 0:00:05]}  a4 {[%clk 0:00:23]} 64. f8=Q {[%clk 0:00:05]}  Rxf8 {[%clk 0:00:23]} 65. Kxf8 {[%clk 0:00:06]}  a3 {[%clk 0:00:24]} 66. e7 {[%clk 0:00:07]}  Kb1 {[%clk 0:00:25]} 67. e8=Q {[%clk 0:00:08]}  a2 {[%clk 0:00:26]} 68. Qb5+ {[%clk 0:00:08]}  Kc2 {[%clk 0:00:25]} 69. Qc4+ {[%clk 0:00:08]}  Kb1 {[%clk 0:00:25]} 70. Qb3+ {[%clk 0:00:09]}  Ka1 {[%clk 0:00:25]} 71. Qc3+ {[%clk 0:00:09]}  Kb1 {[%clk 0:00:25]} 72. Qb3+ {[%clk 0:00:10]}  Ka1 {[%clk 0:00:26]} 73. Qxa2+ {[%clk 0:00:10]}  Kxa2 {[%clk 0:00:26]} 1/2-1/2


[Site "https://www.chess.com"]